bitfinex/quotes_SOLUSD_20241016
["timestamp","ask_amount","ask_price","bid_price","bid_amount"]
[1729051648338,6.4693,154.58,154.53,16.1772]
[1729051648522,6.1092,154.61,154.56,6.4698]
[1729051648697,6.4677,154.62,154.56,6.4698]
[1729051649726,15.4355,154.63,154.56,6.4698]
[1729051649727,20.0,154.61,154.56,6.4698]
[1729051649930,20.0,154.6,154.56,6.4698]
[1729051651816,20.0,154.6,154.53,16.1772]
[1729051652130,26.4685,154.6,154.55,6.4703]
[1729051652728,20.0,154.61,154.53,22.6483]
[1729051653029,6.4693,154.58,154.53,22.6483]
[1729051653826,20.0,154.59,154.56,6.4699]
[1729051654425,20.0,154.6,154.56,6.4699]
[1729051660329,26.4683,154.6,154.56,6.4699]
[1729051660533,26.4683,154.6,154.53,16.1772]
[1729051660733,26.4683,154.6,154.55,6.4703]
[1729051664760,20.0,154.62,154.52,6.3723]
[1729051664918,26.4678,154.62,154.56,6.4696]
[1729051665640,20.0,154.6,154.55,22.6454]
[1729051666442,26.4684,154.6,154.55,22.6454]
[1729051666843,20.0,154.6,154.52,6.3723]
[1729051667029,23.776884,154.59,154.53,6.4711]
[1729051667341,6.4696,154.57,154.52,22.6501]
[1729051667843,6.4696,154.57,154.55,3.129182]
[1729051671045,20.0,154.58,154.55,3.129182]
[1729051671544,103.30540571,154.63,154.55,9.599482]
[1729051671730,20.0,154.59,154.56,6.4698]
[1729051672643,6.4683,154.6,154.56,6.4698]
[1729051675226,6.4682,154.61,154.57,6.4695]
[1729051675416,20.0,154.6,154.57,6.4695]
[1729051678643,6.4686,154.6,154.55,25.774982]
[1729051679233,70.0,154.58,154.55,3.129182]
[1729051679453,23.776884,154.56,154.55,3.129182]
[1729051679627,50.246784,154.56,154.55,3.129182]
[1729051684929,20.0,154.56,154.55,3.129182]
[1729051685249,6.4687,154.59,154.55,3.129182]
[1729051685446,6.4686,154.6,154.55,9.599382]
[1729051685759,6.4679,154.61,154.56,6.4698]
[1729051686436,6.4674,154.62,154.57,6.4693]
[1729051686628,21.9026,154.63,154.58,6.4687]
[1729051687243,15.4355,154.63,154.55,3.129182]
[1729051687550,88.76167485,154.66,154.59,16.1708]
[1729051687757,6.467,154.63,154.59,16.1708]
[1729051687925,20.0,154.62,154.59,16.1708]
[1729051691132,6.467,154.63,154.59,22.6394]
[1729051692245,88.76167485,154.66,154.59,22.6394]
[1729051692560,20.0,154.63,154.59,22.6394]
[1729051692853,20.0,154.63,154.59,16.1708]
[1729051693057,20.0,154.64,154.6,6.4682]
[1729051693234,20.0,154.65,154.61,6.4676]
[1729051694351,6.4658,154.66,154.61,6.4676]
[1729051699253,6.4658,154.66,154.61,6.4677]
[1729051700359,71.71798696,154.7,154.59,54.2107]
[1729051700551,6.4658,154.66,154.62,6.4671]
[1729051700868,26.4654,154.67,154.62,6.4671]
[1729051704048,86.4504,154.74,154.63,11.58193597]
[1729051704357,86.4504,154.74,154.66,6.4654]
[1729051704358,6.4637,154.71,154.66,6.4654]
[1729051705759,20.0,154.7,154.66,6.4654]
[1729051711550,6.4637,154.71,154.66,6.4654]
[1729051712065,6.74971476,154.73,154.69,6.4645]
[1729051712279,6.74971476,154.73,154.68,11.58193597]
[1729051712475,70.6300726,154.78,154.71,6.4635]
[1729051712674,6.74704144,154.76,154.71,6.4635]
[1729051712973,13.20874144,154.76,154.71,6.4635]
[1729051713358,20.0,154.75,154.71,6.4635]
[1729051714655,20.0,154.75,154.7,16.16]
[1729051714861,26.4622,154.75,154.7,22.624]
[1729051716374,6.4625,154.74,154.7,16.16]
[1729051716973,6.4641,154.7,154.65,6.4658]
[1729051718563,6.4647,154.69,154.64,16.1663]
[1729051718774,20.0,154.68,154.64,16.1663]
[1729051719780,23.776884,154.67,154.6,16.1703]
[1729051719984,20.0,154.66,154.6,16.1703]
[1729051720356,26.75122513,154.66,154.58,21.2965]
[1729051720567,26.75122513,154.66,154.55,53.58162646]
[1729051720568,26.75122513,154.66,154.57,16.1735]
[1729051720896,20.0,154.64,154.57,16.1735]
[1729051721463,20.0,154.64,154.59,6.4686]
[1729051723578,6.4675,154.62,154.57,16.1735]
[1729051724282,6.4675,154.62,154.57,22.6427]
[1729051730705,13.22542431,154.62,154.57,22.6427]
[1729051734863,6.75792431,154.62,154.57,16.1735]
[1729051735063,6.4684,154.6,154.55,9.599482]
[1729051735381,6.4684,154.6,154.55,3.129182]
[1729051735382,20.0,154.59,154.55,3.129182]
[1729051736189,6.4699,154.56,154.55,3.129182]
[1729051736390,26.4699,154.56,154.55,3.129182]
[1729051737092,20.0,154.56,154.55,3.129182]
[1729051739498,50.246784,154.56,154.55,3.129182]
[1729051740995,56.99937847,154.56,154.55,3.129182]
[1729051744174,142.81247847,154.56,154.55,3.129182]
[1729051744580,20.0,154.51,154.46,22.659]
[1729051744781,26.4724,154.51,154.46,22.659]
[1729051745993,20.0,154.51,154.46,16.1852]
[1729051746291,30.249484,154.5,154.46,16.1852]
[1729051746871,6.4729,154.49,154.45,6.4745]
[1729051747068,6.4729,154.49,154.43,16.1883]
[1729051747271,6.4729,154.49,154.44,6.4749]
[1729051749993,6.4729,154.49,154.43,16.1883]
[1729051750200,6.4729,154.49,154.45,6.4745]
[1729051750371,1.69691866,154.53,154.43,16.1883]
[1729051750372,20.0,154.53,154.46,16.1853]
[1729051750776,20.0,154.51,154.48,6.4732]
[1729051751492,20.0,154.51,154.47,6.4736]
[1729051753179,92.2197,154.56,154.46,16.1853]
[1729051753415,50.247284,154.55,154.5,6.4723]
[1729051753695,6.75134965,154.55,154.49,16.1821]
[1729051753894,6.75134965,154.55,154.53,6.4711]
[1729051755302,6.4687,154.59,154.54,6.4708]
[1729051755695,6.74953669,154.58,154.54,6.4708]
[1729051756504,13.21863669,154.58,154.54,6.4708]
[1729051756807,20.0,154.57,154.54,6.4708]
[1729051757304,6.74953669,154.58,154.56,6.4699]
[1729051757488,15.1673,154.6,154.56,6.4699]
[1729051758906,20.0,154.59,154.51,50.49780654]
[1729051759109,20.0,154.61,154.57,6.4695]
[1729051760991,20.0,154.61,154.56,6.4699]
[1729051761391,20.0,154.61,154.55,16.1749]
[1729051761601,21.6341,154.64,154.59,6.4685]
[1729051761904,23.776884,154.63,154.59,6.4685]
[1729051762289,23.776884,154.63,154.58,16.1726]
[1729051762607,6.467,154.63,154.58,22.6416]
[1729051762808,20.0,154.62,154.58,22.6416]
[1729051775492,20.0,154.61,154.58,22.6416]
[1729051777199,6.4683,154.6,154.56,6.4699]
[1729051777617,20.0,154.59,154.56,6.4699]
[1729051788527,15.1673,154.64,154.58,6.4691]
[1729051788528,6.467,154.63,154.58,6.4691]
[1729051788731,15.1673,154.64,154.57,11.58770192]
[1729051788910,6.4665,154.65,154.57,11.58770192]
[1729051789402,6.4665,154.65,154.6,6.4679]
[1729051790222,20.0,154.64,154.6,6.4679]
[1729051792933,20.0,154.63,154.59,22.6396]
[1729051795321,6.4675,154.62,154.56,16.1744]
[1729051795713,6.4675,154.62,154.58,6.469]
[1729051797512,20.0,154.65,154.55,11.58770192]
[1729051797712,20.0,154.63,154.59,6.4683]
[1729051798120,6.4662,154.66,154.61,6.4677]
[1729051799235,43.776884,154.65,154.52,0.1]
[1729051799439,43.776884,154.65,154.59,6.4686]
[1729051799615,20.0,154.63,154.59,6.4686]
[1729051804139,92.6213,154.68,154.59,16.1711]
[1729051804335,6.4658,154.66,154.61,6.4675]
[1729051805517,20.0,154.65,154.61,6.4675]
[1729051805942,6.4672,154.63,154.59,16.1711]
[1729051806127,6.4672,154.63,154.59,22.6396]
[1729051806737,20.0,154.63,154.59,22.6396]
[1729051808343,50.242684,154.66,154.61,6.4678]
[1729051810931,20.0,154.64,154.59,22.6394]
[1729051811250,6.4672,154.63,154.59,16.1711]
[1729051811630,6.4672,154.63,154.59,22.6397]
[1729051813353,26.4667,154.64,154.6,6.4681]
[1729051813530,20.0,154.64,154.6,6.4681]
[1729051813729,20.0,154.65,154.6,6.4681]
[1729051814453,26.4662,154.65,154.6,6.4681]
[1729051819366,6.4666,154.64,154.6,6.4681]
[1729051819650,6.4666,154.64,154.59,22.6397]
[1729051819851,6.4666,154.64,154.59,16.1711]
[1729051820155,6.4666,154.64,154.6,6.4682]
[1729051822348,26.4663,154.65,154.61,6.4678]
[1729051827546,20.0,154.66,154.61,6.4678]
[1729051827751,20.0,154.65,154.61,6.4678]
[1729051828332,6.4658,154.66,154.62,6.4672]
[1729051830157,20.0,154.67,154.58,11.58770192]
[1729051830363,20.0,154.67,154.63,6.4667]
[1729051832666,26.4654,154.67,154.63,6.4667]
[1729051836561,20.0,154.67,154.63,6.4667]
[1729051836865,26.4654,154.67,154.63,6.4667]
[1729051839444,20.0,154.67,154.64,6.4665]
[1729051840563,70.0,154.71,154.6,11.58770192]
[1729051840745,6.4637,154.71,154.67,6.4653]
[1729051841459,22.9967,154.72,154.65,16.1649]
[1729051841659,6.4628,154.74,154.69,6.4643]
[1729051842163,6.462,154.75,154.7,16.1601]
[1729051842565,6.4624,154.74,154.7,16.1601]
[1729051842769,70.0,154.75,154.67,16.1633]
[1729051843068,23.776884,154.73,154.67,16.1633]
[1729051843866,30.239784,154.73,154.68,6.4649]
[1729051847347,6.4641,154.7,154.64,32.7968]
[1729051847546,6.4638,154.71,154.64,32.7968]
[1729051847749,6.4638,154.71,154.66,6.4653]
[1729051848059,30.240084,154.73,154.66,16.1636]
[1729051848258,23.776884,154.73,154.7,6.4639]
[1729051848465,23.776884,154.73,154.69,16.161]
[1729051848774,30.239884,154.73,154.69,16.161]
[1729051853648,26.4625,154.74,154.69,22.6255]
[1729051863274,20.0,154.74,154.7,6.4638]
[1729051863518,0.6300726,154.78,154.71,27.74610192]
[1729051863775,0.6300726,154.78,154.73,16.1564]
[1729051864160,0.6300726,154.78,154.75,6.462]
[1729051864868,0.6300726,154.78,154.73,16.1564]
[1729051865068,0.6300726,154.78,154.74,6.4623]
[1729051866281,0.6300726,154.78,154.75,6.4616]
[1729051867055,0.6300726,154.78,154.74,6.4622]
[1729051867262,6.4612,154.77,154.73,16.1564]
[1729051867664,0.6300726,154.78,154.73,16.1564]
[1729051867974,6.4612,154.77,154.73,16.1564]
[1729051868495,7.0910726,154.78,154.73,16.1564]
[1729051869867,7.0910726,154.78,154.73,22.619]
[1729051874098,0.6300726,154.78,154.73,27.74410192]
[1729051874279,0.6300726,154.78,154.76,6.4614]
[1729051874468,0.6300726,154.78,154.77,6.4612]
[1729051874787,0.6300726,154.78,154.76,16.1539]
[1729051874992,0.6300726,154.78,154.76,22.6154]
[1729051877978,0.6300726,154.78,154.77,6.4612]
[1729051880002,0.6300726,154.78,154.76,16.1539]
[1729051880298,0.6300726,154.78,154.73,22.4457]
[1729051880496,0.6300726,154.78,154.76,6.4614]
[1729051882574,0.6300726,154.78,154.75,16.1543]
[1729051882782,0.6300726,154.78,154.77,6.4612]
[1729051885803,0.6300726,154.78,154.77,18.04890192]
[1729051885979,0.6300726,154.78,154.77,6.4612]
[1729051888378,0.6300726,154.78,154.75,16.1543]
[1729051889697,0.6300726,154.78,154.74,6.462]
[1729051890589,0.6300726,154.78,154.74,16.1553]
[1729051890799,0.6300726,154.78,154.76,6.4615]
[1729051892196,0.6300726,154.78,154.75,6.4619]
[1729051893707,0.6300726,154.78,154.76,6.4616]
[1729051894073,0.6300726,154.78,154.77,6.4612]
[1729051897490,0.6300726,154.78,154.77,18.04890192]
[1729051902080,0.6300726,154.78,154.77,6.4612]
[1729051902904,0.6300726,154.78,154.76,22.615]
[1729051903286,0.6300726,154.78,154.7,14.4754129]
[1729051903287,7.0909726,154.78,154.73,16.1568]
[1729051903505,0.6300726,154.78,154.74,6.4624]
[1729051905309,0.6300726,154.78,154.73,16.1568]
[1729051905602,0.6300726,154.78,154.75,6.462]
[1729051910698,6.4613,154.77,154.73,22.6192]
[1729051911092,6.4613,154.77,154.73,16.1568]
[1729051919524,0.6300726,154.78,154.73,16.1568]
[1729051919706,6.462,154.75,154.71,6.4636]
[1729051920120,90.6300726,154.78,154.7,16.1599]
[1729051920305,6.4617,154.76,154.71,6.4636]
[1729051930502,70.0,154.76,154.7,16.1599]
[1729051930706,6.4624,154.74,154.7,16.1599]
[1729051930921,20.0,154.73,154.7,16.1599]
[1729051931914,6.4633,154.72,154.67,22.6283]
[1729051942838,93.776884,154.72,154.67,16.1631]
[1729051943045,6.4641,154.7,154.65,6.4659]
[1729051943740,6.4641,154.7,154.66,6.4657]
[1729051944556,93.776884,154.72,154.66,6.4657]
[1729051944844,6.4629,154.73,154.66,27.75160192]
[1729051945018,15.7244,154.74,154.72,6.4632]
[1729051945219,13.0489,154.76,154.72,6.4632]
[1729051945426,13.0489,154.76,154.71,6.4636]
[1729051946437,20.0,154.75,154.71,6.4636]
[1729051947744,26.462,154.75,154.71,6.4636]
[1729051948619,26.462,154.75,154.7,16.1597]
[1729051948823,26.462,154.75,154.7,22.6237]
[1729051949450,16.4685726,154.78,154.72,16.1575]
[1729051949638,0.6300726,154.78,154.76,6.4616]
[1729051949855,0.6300726,154.78,154.76,6.4615]
[1729051950148,0.6300726,154.78,154.75,6.4619]
[1729051951036,0.6300726,154.78,154.74,16.1554]
[1729051951238,0.6300726,154.78,154.72,11.58770192]
[1729051951546,7.0911726,154.78,154.72,6.4632]
[1729051953949,7.0911726,154.78,154.71,16.159]
[1729051954157,7.0911726,154.78,154.73,6.4628]
[1729051963755,0.6300726,154.78,154.75,6.4618]
[1729051966038,0.6300726,154.78,154.67,87.6647]
[1729051966039,0.6300726,154.78,154.74,11.58770192]
[1729051966337,0.6300726,154.78,154.77,6.4612]
[1729051969045,0.6300726,154.78,154.76,16.1535]
[1729051969647,0.6300726,154.78,154.76,22.615]
[1729051972439,0.6300726,154.78,154.77,6.4612]
[1729051981065,0.6300726,154.78,154.73,16.1568]
[1729051981265,6.4615,154.77,154.72,6.4629]
[1729051981472,22.2170726,154.78,154.73,6.4628]
[1729051981670,0.6300726,154.78,154.76,6.4615]
[1729051983144,0.6300726,154.78,154.73,16.1564]
[1729051983145,0.6300726,154.78,154.74,6.4622]
[1729051983350,0.6300726,154.78,154.73,16.1564]
[1729051983668,6.4615,154.77,154.72,6.4632]
[1729051984749,0.6300726,154.78,154.7,16.1601]
[1729051985065,6.4617,154.76,154.7,16.1601]
[1729051985466,6.4622,154.75,154.7,16.1601]
[1729051988771,15.1262,154.76,154.7,16.1601]
[1729051988973,21.588,154.76,154.71,6.4634]
[1729051993555,15.1262,154.76,154.72,6.4631]
[1729051997578,0.6300726,154.78,154.75,6.462]
[1729051997762,0.6300726,154.78,154.74,6.4623]
[1729052001781,0.6300726,154.78,154.71,33.22430192]
[1729052001970,0.6300726,154.78,154.76,6.4615]
[1729052005280,0.6300726,154.78,154.74,16.1553]
[1729052005281,0.6300726,154.78,154.75,6.4619]
[1729052009592,0.6300726,154.78,154.74,16.1553]
[1729052009777,0.6300726,154.78,154.76,6.4616]
[1729052011875,0.6300726,154.78,154.77,6.4612]
[1729052032885,0.6300726,154.78,154.77,18.04890192]
[1729052040215,0.6300726,154.78,154.77,6.4612]
[1729052043502,0.6300726,154.78,154.77,18.04890192]
[1729052046694,0.6300726,154.78,154.77,41.92578592]
[1729052046894,0.6300726,154.78,154.77,62.02578592]
[1729052047296,0.6300726,154.78,154.77,61.92578592]
[1729052047612,0.6300726,154.78,154.77,62.02578592]
[1729052047792,0.6300726,154.78,154.77,61.92578592]
[1729052047997,0.6300726,154.78,154.77,61.82578592]
[1729052049709,0.6300726,154.78,154.77,61.92578592]
[1729052049917,0.6300726,154.78,154.77,61.82578592]
[1729052050092,0.6300726,154.78,154.77,61.92578592]
[1729052050293,0.6300726,154.78,154.77,61.82578592]
[1729052050594,0.6300726,154.78,154.77,61.92578592]
[1729052050913,0.6300726,154.78,154.77,61.82578592]
[1729052051126,0.6300726,154.78,154.77,61.92578592]
[1729052055717,0.6300726,154.78,154.77,61.82578592]
[1729052057824,0.6300726,154.78,154.77,38.04890192]
[1729052059935,0.6300726,154.78,154.77,62.02578592]
[1729052060105,22.5346,154.88,154.86,6.4572]
[1729052061919,16.3595,154.88,154.87,6.457]
[1729052062227,22.1897,154.92,154.87,16.1418]
[1729052063511,22.1897,154.92,154.9,6.4557]
[1729052063912,22.1897,154.92,154.88,6.4563]
[1729052064934,22.1897,154.92,154.82,6.78207264]
[1729052065226,20.0,154.9,154.83,16.1461]
[1729052065431,15.9583,154.87,154.83,22.6047]
[1729052066028,15.9583,154.87,154.84,6.4581]
[1729052066729,22.4155,154.87,154.83,16.1461]
[1729052067418,15.9583,154.87,154.83,22.6047]
[1729052069836,15.9583,154.87,154.83,16.1461]
[1729052070015,15.9583,154.87,154.86,6.4574]
[1729052073028,23.15276375,154.91,154.86,16.1433]
[1729052073208,23.15276375,154.91,154.87,6.4569]
[1729052073412,29.60806375,154.91,154.87,6.4569]
[1729052073733,6.4561,154.9,154.86,16.1433]
[1729052075813,29.60816375,154.91,154.86,22.6006]
[1729052083515,23.15276375,154.91,154.89,6.4561]
[1729052083834,7.0845726,154.94,154.89,6.4561]
[1729052083835,13.83703536,154.94,154.89,6.4561]
[1729052084028,7.38253536,154.94,154.88,16.1409]
[1729052084212,7.38253536,154.94,154.9,6.4556]
[1729052089445,6.4552,154.92,154.88,16.1409]
[1729052089650,6.4556,154.91,154.86,6.457]
[1729052092546,6.455,154.92,154.87,6.4567]
[1729052094140,13.20757344,154.92,154.87,6.4567]
[1729052096733,13.20757344,154.92,154.82,23.0478]
[1729052096734,6.4572,154.87,154.82,22.6063]
[1729052097246,15.6557,154.89,154.82,16.1473]
[1729052097554,22.1119,154.89,154.84,6.4582]
[1729052101457,6.75257344,154.92,154.87,6.4569]
[1729052101673,6.75257344,154.92,154.88,6.4565]
[1729052104440,6.75257344,154.92,154.87,16.1419]
[1729052104659,6.75257344,154.92,154.89,6.4559]
[1729052105551,6.75257344,154.92,154.87,16.1419]
[1729052105755,15.9351,154.93,154.9,6.4557]
[1729052107767,20.6300726,154.94,154.9,6.4557]
[1729052108240,0.6300726,154.94,154.92,6.4546]
[1729052111673,0.6300726,154.94,154.91,16.1376]
[1729052111857,7.0841726,154.94,154.88,16.141]
[1729052112060,7.0841726,154.94,154.89,6.4561]
[1729052112061,0.6300726,154.94,154.89,6.4561]
[1729052112268,0.6300726,154.94,154.91,6.4553]
[1729052112569,0.6300726,154.94,154.9,16.1385]
[1729052112759,0.6300726,154.94,154.93,6.4545]
[1729052115859,0.6300726,154.94,154.93,41.81908592]
[1729052117175,0.6300726,154.94,154.93,61.81908592]
[1729052117380,0.6300726,154.94,154.93,26.4545]
[1729052117972,0.6300726,154.94,154.92,6.4548]
[1729052118174,0.6300726,154.94,154.91,6.4551]
[1729052118981,0.6300726,154.94,154.9,16.1385]
[1729052119752,0.6300726,154.94,154.91,6.4552]
[1729052122460,0.6300726,154.94,154.92,6.4548]
[1729052123580,0.6300726,154.94,154.91,6.4553]
[1729052124289,0.6300726,154.94,154.9,16.1385]
[1729052124290,0.6300726,154.94,154.93,6.4545]
[1729052125586,0.6300726,154.94,154.91,26.4549]
[1729052126262,7.0842726,154.94,154.9,16.1385]
[1729052126457,6.4549,154.92,154.88,6.4565]
[1729052126661,7.0844726,154.94,154.88,6.4565]
[1729052128490,6.4546,154.93,154.88,6.4565]
[1729052128792,6.4546,154.93,154.84,11.58770192]
[1729052128793,6.4562,154.89,154.84,22.6033]
[1729052129284,70.0,154.93,154.84,22.6033]
[1729052129285,6.4566,154.88,154.84,16.1453]
[1729052129871,6.6622,154.91,154.84,22.6035]
[1729052129872,26.4561,154.9,154.84,22.6035]
[1729052130673,6.4561,154.9,154.84,22.6035]
[1729052131284,6.4566,154.88,154.84,16.1453]
[1729052131563,6.4582,154.85,154.79,6.4601]
[1729052131784,43.776884,154.88,154.78,37.8966]
[1729052132082,6.4574,154.86,154.81,6.4595]
[1729052133669,6.4582,154.85,154.79,6.4601]
[1729052134075,6.4583,154.84,154.79,6.4601]
[1729052134388,6.4588,154.83,154.78,22.6124]
[1729052141175,16.2381,154.83,154.74,21.7448]
[1729052141387,6.4597,154.81,154.76,6.4612]
[1729052143069,6.46,154.8,154.75,6.4619]
[1729052146587,6.4606,154.79,154.74,22.6177]
[1729052146988,6.46,154.8,154.75,6.4616]
[1729052149081,6.4597,154.81,154.77,6.4611]
[1729052149902,20.0,154.82,154.77,6.4611]
[1729052150103,26.4591,154.82,154.77,6.4611]
[1729052150994,20.0,154.82,154.72,50.46239325]
[1729052151203,22.6968,154.83,154.78,6.4607]
[1729052153301,23.776884,154.86,154.79,6.46]
[1729052153609,6.4582,154.85,154.8,6.4598]
[1729052154103,22.1656,154.87,154.77,11.55789762]
[1729052154308,15.6356,154.87,154.85,6.4578]
[1729052154481,15.6356,154.87,154.84,6.4581]
[1729052155094,6.4562,154.89,154.84,6.4581]
[1729052155311,22.1656,154.91,154.84,6.4581]
[1729052155604,6.4561,154.9,154.82,16.147]
[1729052155822,6.4566,154.88,154.83,6.4586]
[1729052155997,6.4574,154.86,154.82,16.147]
[1729052156710,70.0,154.9,154.84,6.4582]
[1729052156711,6.4568,154.88,154.84,6.4582]
[1729052156915,6.457,154.87,154.82,16.147]
[1729052157207,6.457,154.87,154.82,22.606]
[1729052160716,6.4577,154.86,154.82,16.147]
[1729052161712,6.4558,154.9,154.82,16.147]
[1729052161916,15.6356,154.91,154.84,16.1446]
[1729052162321,0.6300726,154.94,154.87,16.1424]
[1729052162910,0.6300726,154.94,154.88,6.4565]
[1729052163616,6.4545,154.93,154.88,6.4565]
[1729052163914,20.6300726,154.94,154.89,16.1396]
[1729052164107,27.0841726,154.94,154.89,22.5957]
[1729052165608,6.4545,154.93,154.89,16.1396]
[1729052167316,6.4549,154.92,154.88,6.4565]
[1729052167522,6.4558,154.9,154.86,16.1432]
[1729052167696,70.0,154.93,154.84,6.4578]
[1729052167697,6.4562,154.89,154.84,6.4578]
[1729052168097,93.776884,154.93,154.86,6.4572]
[1729052168098,6.4557,154.91,154.86,6.4572]
[1729052170024,6.4557,154.9,154.85,22.6017]
[1729052172725,6.4572,154.87,154.82,22.6065]
[1729052173218,15.8184,154.89,154.82,22.6065]
[1729052173219,6.4576,154.86,154.82,16.1475]
[1729052174319,6.4576,154.86,154.82,22.6065]
[1729052175437,70.0,154.87,154.79,16.1505]
[1729052175604,6.4584,154.84,154.79,22.6108]
[1729052176129,6.4584,154.84,154.79,16.1505]
[1729052176305,6.4584,154.84,154.8,6.4598]
[1729052177522,70.0,154.85,154.79,16.1505]
[1729052177724,70.0,154.85,154.76,16.1536]
[1729052177725,20.0,154.84,154.76,16.1536]
[1729052178103,6.46,154.8,154.76,22.6151]
[1729052179114,6.46,154.8,154.76,16.1536]
[1729052179315,6.46,154.8,154.75,6.4619]
[1729052179516,15.8184,154.82,154.73,16.1568]
[1729052179820,15.8184,154.82,154.74,6.4623]
[1729052179821,6.4604,154.79,154.74,6.4623]
[1729052180022,6.4608,154.78,154.74,6.4623]
[1729052183539,76.0157,154.81,154.68,22.3387]
[1729052183713,70.0,154.78,154.7,16.1601]
[1729052184028,20.0,154.75,154.7,16.1601]
[1729052184709,6.4626,154.74,154.7,16.1601]
[1729052185833,26.462,154.75,154.7,22.6241]
[1729052188336,6.4629,154.73,154.68,6.4645]
[1729052188636,6.4625,154.74,154.69,6.4644]
[1729052189539,6.4629,154.73,154.68,6.4648]
[1729052190537,90.0,154.75,154.66,16.1635]
[1729052190538,6.4632,154.72,154.67,6.4653]
[1729052191413,70.0,154.73,154.65,6.4659]
[1729052191611,43.776884,154.72,154.65,6.4659]
[1729052192330,43.776884,154.72,154.63,22.6343]
[1729052192331,6.465,154.68,154.63,22.6343]
[1729052193031,6.4654,154.67,154.63,16.1673]
[1729052193344,6.4654,154.67,154.62,6.4674]
[1729052193345,6.4658,154.66,154.61,6.4678]
[1729052201045,6.4667,154.64,154.6,16.1706]
[1729052201347,6.467,154.63,154.58,6.4691]
[1729052201922,6.4671,154.63,154.58,6.469]
[1729052202336,6.4675,154.62,154.58,6.469]
[1729052203228,70.0,154.66,154.58,6.469]
[1729052203428,6.4671,154.63,154.58,6.469]
[1729052217743,6.4679,154.61,154.57,16.1736]
[1729052218054,43.776884,154.63,154.57,22.6431]
[1729052218055,6.4675,154.62,154.57,22.6431]
[1729052218239,6.4675,154.62,154.57,16.1736]
[1729052219559,6.4675,154.62,154.58,6.469]
[1729052221133,15.3362,154.63,154.57,16.1736]
[1729052221339,6.4679,154.61,154.57,16.1736]
[1729052222347,15.3362,154.63,154.57,16.1736]
[1729052222661,6.4675,154.62,154.58,6.469]
[1729052223428,15.3362,154.63,154.57,16.1736]
[1729052223649,6.4679,154.61,154.57,22.6431]
[1729052228346,6.4679,154.61,154.57,16.1736]
[1729052235675,6.4679,154.61,154.57,22.643]
[1729052242677,20.0,154.62,154.59,6.4683]
[1729052243175,20.0,154.62,154.58,6.4691]
[1729052243871,6.4674,154.62,154.58,6.4691]
[1729052244575,6.4674,154.62,154.57,16.1736]
[1729052244757,6.4674,154.62,154.57,22.6429]
[1729052245664,70.0,154.62,154.54,16.1766]
[1729052245979,6.469,154.59,154.55,6.4703]
[1729052247660,6.4692,154.58,154.54,22.6473]
[1729052249480,6.4686,154.6,154.55,6.4703]
[1729052250978,43.776884,154.61,154.55,6.4703]
[1729052251163,6.4687,154.59,154.55,6.4703]
[1729052260172,70.0,154.6,154.54,16.1766]
[1729052260373,6.4693,154.58,154.54,16.1766]
[1729052264168,6.4702,154.56,154.51,22.6517]
[1729052266186,85.2714,154.58,154.51,16.1797]
[1729052266483,6.4706,154.55,154.51,16.1797]
[1729052267689,6.4716,154.53,154.48,22.6563]
[1729052267892,70.0,154.54,154.48,16.1831]
[1729052268092,6.4704,154.55,154.51,6.472]
[1729052268393,20.0,154.54,154.51,6.472]
[1729052268592,20.0,154.54,154.5,6.4724]
[1729052269464,91.7776,154.53,154.45,16.1862]
[1729052269665,6.4717,154.52,154.47,6.4736]